bitfinex/quotes_ETHUSD_20260302
["timestamp","ask_amount","ask_price","bid_price","bid_amount"]
[1772456955578,1.29363736,1932.6,1931.2,2.98509145]
[1772456955943,1.29363736,1932.6,1931.3,1.29446486]
[1772456956263,2.94321825,1932.5,1931.4,2.98509145]
[1772456956639,2.686,1932.4,1931.4,2.98509145]
[1772456956975,1.29363736,1932.6,1931.4,2.98509145]
[1772456957142,2.686,1932.4,1931.4,2.98509145]
[1772456957341,5.48408473,1932.4,1931.3,1.29446486]
[1772456957539,2.79808473,1932.3,1931.3,1.29446486]
[1772456957948,0.5,1932.2,1931.3,1.29446486]
[1772456958264,3.97792888,1932.1,1931.2,1.29453189]
[1772456958892,3.97592888,1932.1,1931.2,1.29453189]
[1772456959601,1.29392888,1932.1,1931.2,1.29453189]
[1772456959894,1.7938647,1932.2,1931.3,3.00276709]
[1772456960062,1.7938647,1932.2,1931.4,1.29439784]
[1772456960265,0.5,1932.2,1931.4,1.29439784]
[1772456960469,0.5,1932.2,1931.5,3.00276709]
[1772456962423,0.5,1932.2,1931.7,3.00276709]
[1772456963100,0.001,1932.6,1931.7,3.00276709]
[1772456964472,0.001,1932.6,1931.8,4.29689691]
[1772456965788,0.001,1932.6,1931.8,1.29412982]
[1772456966622,0.001,1932.6,1931.8,3.00276709]
[1772456968602,0.001,1932.6,1931.9,1.29406283]
[1772456969703,0.001,1932.6,1932.0,3.00276709]
[1772456971096,0.001,1932.6,1932.1,1.29392888]
[1772456971507,0.00153886,1933.0,1932.5,3.00276709]
[1772456972612,5.50824543,1933.9,1932.8,3.00276709]
[1772456972793,6.8009773,1933.9,1932.8,3.00276709]
[1772456972996,6.8009773,1933.9,1932.9,1.29339334]
[1772456973880,2.79808473,1933.7,1932.5,4.29642815]
[1772456974080,2.79808473,1933.4,1932.4,1.29369651]
[1772456974285,2.79808473,1933.4,1932.3,1.2937523]
[1772456974588,2.79808473,1933.2,1932.3,1.2937523]
[1772456975121,1.29325953,1933.1,1932.3,1.2937523]
[1772456975411,4.09134426,1933.1,1932.2,1.29381813]
[1772456976687,2.79808473,1933.0,1932.2,1.29381813]
[1772456977010,3.94525953,1933.1,1932.2,4.29658522]
[1772456977210,1.29325953,1933.1,1932.2,4.29658522]
[1772456979098,1.29321999,1933.2,1932.3,3.00276709]
[1772456979302,1.29321999,1933.2,1932.4,1.293728]
[1772456980816,4.09130472,1933.2,1932.4,1.293728]
[1772456981014,2.79808473,1933.1,1932.4,1.293728]
[1772456981186,1.29312574,1933.3,1932.3,3.00276709]
[1772456981600,3.93712574,1933.3,1932.3,3.00276709]
[1772456982810,3.93612574,1933.3,1932.3,3.00276709]
[1772456983116,4.04934791,1932.9,1932.0,1.2954789]
[1772456983417,1.29346026,1932.8,1932.0,0.00153886]
[1772456983898,1.29346026,1932.8,1932.4,0.0011]
[1772456985417,1.29337901,1933.0,1932.4,0.0011]
[1772456985620,3.93724277,1933.2,1932.4,3.00386709]
[1772456985815,2.644,1933.2,1932.4,3.00386709]
[1772456985986,1.29308756,1933.4,1932.4,3.00386709]
[1772456986188,1.29304394,1933.5,1932.4,3.00386709]
[1772456986487,7.81448274,1933.7,1932.5,3.00276709]
[1772456986917,2.79808473,1933.6,1932.5,3.00276709]
[1772456987504,2.79808473,1933.6,1932.6,1.29359412]
[1772456987505,2.70204375,1933.4,1932.6,1.29359412]
[1772456987900,2.70204375,1933.4,1932.4,1.29476895]
[1772456988107,3.87,1933.3,1932.4,1.29476895]
[1772456989298,3.87,1933.3,1932.4,4.14520849]
[1772456989499,5.16311221,1933.4,1932.5,2.85043954]
[1772456989699,5.16293487,1933.6,1932.5,2.85043954]
[1772456990026,3.87,1933.6,1932.5,2.85043954]
[1772456990323,5.16293285,1933.6,1932.5,2.85043954]
[1772456990521,3.87,1933.6,1932.5,2.85043954]
[1772456990826,5.16294589,1933.6,1932.5,2.85043954]
[1772456991027,1.29291448,1933.7,1932.5,2.85043954]
[1772456991540,1.29291448,1933.7,1932.6,1.29359412]
[1772456991727,1.29384577,1933.8,1932.7,2.85043954]
[1772456992022,0.001,1933.8,1932.7,2.85043954]
[1772456992320,1.29379652,1933.8,1932.7,2.85043954]
[1772456992927,2.70204375,1933.7,1932.7,2.85043954]
[1772456993098,3.95330693,1933.7,1932.7,2.85043954]
[1772456993298,2.70204375,1933.7,1932.7,2.85043954]
[1772456993807,3.92692511,1933.6,1932.8,1.29346026]
[1772456994128,1.29383858,1933.8,1932.9,2.85043954]
[1772456994327,1.29379972,1933.8,1933.0,2.85043954]
[1772456995219,2.631,1933.7,1932.8,1.29346026]
[1772456995617,2.631,1933.7,1932.7,8.02428059]
[1772456995618,3.95330693,1933.6,1932.7,4.14393465]
[1772456995829,1.29299198,1933.5,1932.7,1.29349511]
[1772456997628,0.5,1933.4,1932.7,1.29349511]
[1772456997831,1.79310231,1933.4,1932.5,8.02617785]
[1772456998129,0.5,1933.4,1932.6,2.85043954]
[1772456998541,0.501,1933.4,1932.6,2.85043954]
[1772457000033,0.501,1933.4,1932.7,1.29352718]
[1772457000736,1.79406759,1933.4,1932.7,1.29352718]
[1772457000899,1.79406759,1933.4,1932.6,1.29354546]
[1772457000900,4.49611134,1933.4,1932.6,1.29354546]
[1772457001105,4.49611134,1933.4,1932.7,2.85043954]
[1772457001106,0.501,1933.4,1932.7,2.85043954]
[1772457001304,0.001,1933.8,1933.0,2.85043954]
[1772457001607,0.001,1933.8,1933.3,2.85043954]
[1772457001815,0.00253886,1934.0,1933.6,2.85043954]
[1772457002012,0.00253886,1934.0,1933.7,1.29285825]
[1772457002459,0.001,1934.6,1933.7,4.14329779]
[1772457002606,0.001,1934.6,1933.8,2.85043954]
[1772457002998,2.70304375,1934.6,1933.7,1.29285825]
[1772457003430,2.70304375,1934.6,1933.7,4.14329779]
[1772457003635,0.001,1934.6,1933.8,2.85043954]
[1772457004051,0.001,1934.6,1934.0,2.85043954]
[1772457006016,0.001,1934.6,1934.1,1.29259086]
[1772457006851,0.001,1934.6,1934.1,4.1430304]
[1772457007212,0.001,1934.7,1934.2,2.85043954]
[1772457008136,0.001,1934.7,1934.3,1.29245721]
[1772457008644,0.001,1934.7,1934.4,2.85043954]
[1772457009754,0.00153886,1935.0,1934.4,2.85043954]
[1772457009919,2.70204375,1935.7,1934.4,2.85043954]
[1772457010127,1.2916559,1935.5,1934.5,6.20176313]
[1772457010321,1.2916559,1935.5,1934.5,4.14276313]
[1772457010638,0.00153886,1935.4,1934.6,2.85043954]
[1772457010840,2.70358261,1935.4,1934.4,3.35135886]
[1772457011149,2.70358261,1935.3,1934.4,6.2017984]
[1772457011354,2.70204375,1935.3,1934.4,4.1427984]
[1772457011557,0.00153886,1935.2,1934.5,2.85043954]
[1772457011756,1.2916559,1935.5,1934.5,2.85043954]
[1772457011968,2.70358261,1935.4,1934.4,1.29235886]
[1772457012381,0.001,1934.6,1934.3,3.35340579]
[1772457012651,0.00153886,1935.3,1934.4,2.85043954]
[1772457012852,9.57631757,1935.8,1934.4,2.85043954]
[1772457012853,3.99356619,1935.7,1934.4,2.85043954]
[1772457013253,0.00153886,1935.6,1934.4,2.85043954]
[1772457013751,0.00153886,1935.5,1934.4,2.85043954]
[1772457014049,2.7066584,1935.5,1934.5,2.061]
[1772457014455,3.99684218,1935.4,1934.6,1.29225679]
[1772457014654,3.99838104,1935.4,1934.6,4.01758172]
[1772457014830,3.99838104,1935.4,1934.7,2.72532493]
[1772457014831,1.2932615,1935.4,1934.7,2.72532493]
[1772457016053,0.00153886,1935.3,1934.7,2.72532493]
[1772457016236,1.29163982,1935.6,1934.7,2.72532493]
[1772457016237,0.00153886,1935.6,1934.7,2.72532493]
[1772457016560,0.00153886,1935.5,1934.8,3.35012321]
[1772457016745,0.00153886,1935.6,1934.9,2.72532493]
[1772457016946,0.00153886,1935.7,1934.9,2.72532493]
[1772457017535,0.00153886,1935.6,1934.9,2.72532493]
[1772457017733,0.00153886,1935.7,1934.9,2.72532493]
[1772457019477,0.00153886,1935.7,1934.9,1.29201282]
[1772457019478,0.00153886,1935.6,1934.9,1.29201282]
[1772457019890,0.00153886,1935.6,1934.8,3.34807125]
[1772457020160,1.29250701,1935.8,1934.7,5.16864252]
[1772457020161,2.81938889,1935.5,1934.7,1.29213671]
[1772457020363,4.11035704,1935.8,1934.8,2.8771694]
[1772457020563,0.00153886,1935.7,1934.8,2.8771694]
[1772457021163,0.00153886,1935.6,1934.8,2.8771694]
[1772457021364,2.81785003,1935.7,1934.9,1.29205643]
[1772457021545,2.81938889,1935.7,1934.9,1.29205643]
[1772457021739,2.81938889,1935.6,1934.8,1.2920846]
[1772457021973,2.81785003,1935.6,1934.8,1.2920846]
[1772457022346,2.81785003,1935.7,1934.8,4.169254]
[1772457022549,0.00153886,1935.6,1934.8,4.169254]
[1772457023150,2.81938889,1935.6,1934.8,4.169254]
[1772457023551,1.2916559,1935.5,1934.8,4.169254]
[1772457023962,0.00153886,1935.4,1935.0,2.8771694]
[1772457024269,0.001,1935.8,1935.0,2.8771694]
[1772457024471,0.00153886,1935.7,1935.0,2.8771694]
[1772457024858,2.81785003,1936.6,1935.5,2.8771694]
[1772457025058,2.81785003,1936.6,1935.7,2.8771694]
[1772457025281,2.81785003,1936.9,1935.7,2.8771694]
[1772457025492,0.00153886,1937.0,1936.1,2.8771694]
[1772457025653,0.00153886,1937.0,1936.3,1.29112224]
[1772457025974,0.001,1937.5,1936.4,2.8771694]
[1772457027642,0.001,1937.5,1936.3,3.03908225]
[1772457027643,2.81885003,1937.5,1936.3,1.29108896]
[1772457028147,2.81785003,1937.2,1936.2,1.29114265]
[1772457028375,2.81785003,1937.2,1936.2,4.16831205]
[1772457028888,2.81885003,1937.5,1936.3,4.9291694]
[1772457029102,2.81885003,1937.5,1936.4,2.8771694]
[1772457029380,0.001,1937.5,1936.4,2.8771694]
[1772457029562,0.001,1937.5,1936.6,2.8771694]
[1772457029738,0.001,1937.5,1936.7,2.8771694]
[1772457029937,0.001,1937.5,1936.6,1.74796001]
[1772457029938,0.001,1937.5,1936.9,2.8771694]
[1772457030351,0.001,1937.6,1937.0,2.8771694]
[1772457030881,0.001,1937.6,1937.1,2.8771694]
[1772457031181,0.001,1937.6,1937.1,4.9311694]
[1772457031392,0.00153886,1938.0,1937.2,2.8771694]
[1772457031782,0.00153886,1938.0,1937.3,4.16762518]
[1772457032570,0.00153886,1938.0,1937.4,2.053]
[1772457032948,0.00153886,1938.0,1937.3,1.29045578]
[1772457033350,0.00153886,1938.0,1937.2,3.34347345]
[1772457033545,0.00153886,1938.0,1937.0,2.8771694]
[1772457033875,1.29005624,1937.9,1936.8,2.8771694]
[1772457034078,1.29157708,1938.0,1936.8,2.8771694]
[1772457034293,2.81785003,1937.9,1936.8,2.8771694]
[1772457034485,2.81785003,1937.9,1936.8,2.054]
[1772457036353,1.29012281,1937.8,1936.9,1.29072228]
[1772457036681,2.81785003,1937.6,1936.4,1.29101838]
[1772457036879,2.81785003,1937.3,1936.3,1.2910776]
[1772457037383,2.81785003,1937.3,1936.3,4.168247]
[1772457037687,2.81785003,1937.3,1936.6,0.0011]
[1772457037989,2.81785003,1937.6,1936.6,0.0011]
[1772457038185,0.001,1937.7,1936.7,2.8771694]
[1772457038358,0.001,1937.7,1936.9,2.8771694]
[1772457039044,0.001,1937.7,1936.9,4.9271694]
[1772457039249,2.81885003,1937.7,1936.7,1.29081211]
[1772457039869,2.81885003,1937.7,1936.6,1.29197188]
[1772457040180,2.81885003,1937.7,1936.6,1.29199351]
[1772457040488,2.81885003,1937.7,1936.6,0.0011]
[1772457040489,4.10810601,1937.6,1936.6,0.0011]
[1772457041594,1.291237,1937.7,1936.6,2.8782694]
[1772457041750,1.291237,1937.7,1936.7,2.049]
[1772457042387,1.291237,1937.7,1936.8,1.29078893]
[1772457043054,2.81785003,1937.6,1936.7,1.29080961]
[1772457043460,2.81785003,1937.6,1936.6,3.34002073]
[1772457043980,2.81785003,1937.5,1936.6,2.0491]
[1772457044349,1.29038918,1937.4,1936.6,3.34001757]
[1772457045372,2.81785003,1937.5,1936.6,3.34001757]
[1772457045575,4.1081316,1937.6,1936.6,4.16918697]
[1772457045754,4.1081316,1937.6,1936.7,2.047]
[1772457045956,2.81785003,1937.5,1936.6,0.0011]
[1772457046255,2.81785003,1937.5,1936.6,1.29200816]
[1772457046679,4.10823921,1937.4,1936.6,0.0011]
[1772457047783,2.74334975,1937.3,1936.6,0.0011]
[1772457048755,4.03387215,1937.2,1936.6,0.0011]
[1772457048955,2.74334975,1937.1,1936.6,0.0011]
[1772457049601,2.74334975,1937.1,1936.3,0.0011]
[1772457049757,1.2905224,1937.2,1936.3,0.0011]
[1772457049963,4.03360573,1937.6,1936.4,2.79722046]
[1772457050770,4.03360573,1937.6,1936.5,4.08820935]
[1772457051496,2.74334975,1937.5,1936.5,4.08820935]
[1772457051791,2.74334975,1937.4,1936.6,0.0011]
[1772457051990,0.001,1937.1,1936.6,0.0011]
[1772457053268,0.001,1937.7,1936.6,2.79832046]
[1772457053462,0.001,1937.7,1936.9,2.79722046]
[1772457053990,0.00153886,1938.0,1937.1,2.79722046]
[1772457054167,0.00153886,1938.0,1937.1,4.83722046]
[1772457054374,1.29154374,1938.0,1937.1,4.83722046]
[1772457055206,0.00153886,1938.0,1937.2,1.2905224]
[1772457055802,0.00153886,1938.0,1937.2,4.08774286]
[1772457056094,0.00153886,1938.0,1937.3,2.79722046]
[1772457056667,0.00153886,1938.0,1937.2,1.2905224]
[1772457057102,0.00153886,1938.0,1937.1,5.16208961]
[1772457057594,0.00153886,1938.0,1937.1,7.95931007]
[1772457059001,2.74488861,1938.0,1937.1,1.29058902]
[1772457059296,1.29005624,1937.9,1937.0,7.95967267]
[1772457060365,2.74334975,1937.8,1936.9,2.037]
[1772457060571,2.74334975,1937.8,1936.8,5.16310799]
[1772457061479,2.74334975,1937.6,1936.6,1.29197056]
[1772457061781,2.74334975,1937.4,1936.6,1.29197056]
[1772457062094,2.74334975,1937.4,1936.6,1.29202039]
[1772457062503,2.74334975,1937.4,1936.6,0.0011]
[1772457062900,2.74334975,1937.4,1936.6,1.2920212]
[1772457063195,2.74334975,1937.4,1936.6,0.0011]
[1772457063702,2.74334975,1937.2,1936.6,0.0011]
[1772457064572,1.29036569,1937.5,1936.6,2.79832046]
[1772457064772,0.001,1937.1,1936.6,0.0011]
[1772457064996,2.74434975,1937.1,1936.6,0.0011]
[1772457065198,0.001,1937.1,1936.6,0.0011]
[1772457065571,0.001,1937.1,1936.6,2.79832046]
[1772457066199,1.29030927,1937.6,1936.7,2.79722046]
[1772457067004,4.03365902,1937.6,1936.7,2.79722046]
[1772457067683,4.03365902,1937.6,1936.8,1.29078893]
[1772457069921,2.74334975,1937.5,1936.7,1.29082788]
[1772457070205,2.74334975,1937.5,1936.6,3.32397709]
[1772457070407,6.61334975,1937.5,1936.6,3.32397709]
[1772457070714,6.61334975,1937.5,1936.6,0.0011]
[1772457070715,2.74334975,1937.3,1936.6,0.0011]
[1772457071794,4.03387215,1937.2,1936.6,0.0011]
[1772457072303,1.2905224,1937.2,1936.6,0.0011]
[1772457073002,4.03387215,1937.2,1936.6,0.0011]
[1772457074295,2.71207308,1937.1,1936.6,0.0011]
[1772457074500,2.71207308,1937.0,1936.5,0.0011]
[1772457075222,6.58207308,1937.0,1936.5,0.0011]
[1772457075532,2.71207308,1936.8,1936.0,0.00153886]
[1772457075744,1.24486984,1936.9,1936.1,0.0022]
[1772457075745,2.71207308,1936.6,1936.1,0.0022]
[1772457075909,2.71207308,1936.5,1936.0,0.00373886]
[1772457076222,4.00312864,1936.4,1936.0,0.00153886]
[1772457076826,2.71207308,1935.8,1934.7,1.29325487]
[1772457076992,3.95694292,1935.5,1935.1,0.0022]
[1772457077318,3.95694292,1935.5,1934.7,0.0011]
[1772457077720,2.54132852,1935.4,1934.7,1.29327472]
[1772457077928,2.54132852,1935.4,1934.7,1.29323035]
[1772457078422,1.29178938,1935.3,1934.7,0.0011]
[1772457082118,1.29150798,1935.8,1935.0,2.63941615]
[1772457082430,2.54132852,1936.8,1935.0,2.63941615]
[1772457082598,2.54132852,1936.7,1935.6,2.63787729]
[1772457083224,3.78619836,1936.7,1935.6,2.63787729]
[1772457083404,2.54132852,1936.6,1935.6,2.63787729]
[1772457083726,1.24486984,1936.4,1935.1,2.63787729]
[1772457084027,3.80086984,1936.4,1935.1,2.63787729]
[1772457084327,1.29110384,1936.4,1935.3,2.63787729]
[1772457085103,5.08988559,1936.5,1935.3,2.63787729]
[1772457085303,7.63021411,1936.5,1935.3,2.63787729]
[1772457085703,5.07721411,1936.5,1935.3,2.63787729]
[1772457085904,7.63021411,1936.5,1935.3,2.63787729]
[1772457086105,7.63021411,1936.5,1935.4,1.29172264]
[1772457086295,7.63021411,1936.5,1935.5,2.63787729]
[1772457086915,7.63021411,1936.5,1935.5,2.58787729]
[1772457087806,7.62921411,1936.5,1935.5,2.58787729]
[1772457088845,7.62921411,1936.5,1935.6,1.29158917]
[1772457089418,0.001,1936.4,1935.6,1.29158917]
[1772457090103,0.001,1936.4,1935.6,1.24158917]
[1772457090711,0.001,1936.4,1935.7,2.63787729]
[1772457090916,1.29219451,1937.0,1935.9,2.63787729]
[1772457091943,3.83352303,1937.0,1935.9,2.58787729]
[1772457093136,3.83352303,1937.0,1936.0,3.9291996]
[1772457093537,3.83352303,1937.0,1936.1,2.63787729]
[1772457094049,3.83352303,1937.0,1936.1,2.58787729]
[1772457094424,3.78619836,1936.8,1935.9,1.2913446]
[1772457094759,2.54132852,1936.7,1935.7,2.007]
[1772457094926,3.78619836,1936.5,1935.7,3.29851902]
[1772457095122,1.29105556,1936.4,1935.7,2.007]
[1772457095420,3.83238408,1936.4,1935.5,3.92949646]
[1772457095608,2.54132852,1936.3,1935.5,1.29161917]
[1772457097028,5.07738728,1936.2,1935.2,5.93668476]
[1772457097343,1.29113616,1936.3,1935.3,2.63787729]
[1772457099744,1.29113616,1936.3,1935.4,1.29172264]
[1772457099943,2.54132852,1936.2,1935.4,1.29172264]
[1772457101242,2.54132852,1936.2,1935.4,1.29282264]
[1772457101457,2.54132852,1936.2,1935.4,0.0011]
[1772457101820,2.54132852,1936.0,1935.4,0.0011]
[1772457102022,2.54132852,1935.8,1935.4,0.0011]
[1772457102241,2.54132852,1935.8,1935.1,0.0011]
[1772457102451,2.54132852,1935.7,1935.1,0.0011]
[1772457103420,5.07532852,1935.7,1935.1,0.0011]
[1772457103813,1.29158917,1935.6,1935.1,0.0011]
[1772457105751,6.36690488,1935.7,1935.1,0.0011]
[1772457106047,2.54132852,1935.4,1935.1,0.0011]
[1772457106748,2.54132852,1935.4,1934.8,0.0011]
[1772457107936,3.87798718,1935.1,1934.2,2.55841623]
[1772457108136,6.41497326,1935.2,1934.2,2.55841623]
[1772457108856,2.58606429,1935.1,1934.2,2.55841623]
[1772457109062,2.58606429,1935.1,1934.1,2.54183286]
[1772457109262,3.83093413,1935.0,1934.1,2.54183286]
[1772457109435,6.36693413,1935.0,1934.1,2.54183286]
[1772457110057,1.29205643,1934.9,1934.2,1.29252404]
[1772457110259,1.29205643,1934.9,1934.2,3.85094027]
[1772457110447,6.36693413,1935.0,1934.2,3.85094027]
[1772457110648,5.16728909,1935.3,1934.2,3.85094027]
[1772457110649,3.82796885,1935.1,1934.3,2.55841623]
[1772457111065,8.99825018,1935.3,1934.3,2.55841623]
[1772457111066,1.29192125,1935.2,1934.3,2.55841623]
[1772457112365,1.29192125,1935.2,1934.4,3.85080663]
[1772457113661,1.29184229,1935.3,1934.5,2.55841623]
[1772457113861,1.29170703,1935.5,1934.5,2.55841623]
[1772457114067,1.29164227,1935.6,1934.5,2.55841623]
[1772457114565,0.001,1935.1,1934.7,2.55841623]
[1772457114936,1.29164227,1935.6,1934.7,2.55841623]
[1772457115562,3.87770656,1935.6,1934.7,2.55841623]
[1772457115864,1.29164227,1935.6,1934.7,2.55841623]
[1772457116666,2.58606429,1935.7,1934.9,2.55841623]
[1772457118086,3.87897591,1936.0,1934.9,2.55841623]
[1772457118367,3.87892679,1936.0,1935.0,2.55841623]
[1772457118537,3.87892679,1936.0,1935.2,2.55841623]
[1772457121771,3.87892679,1936.0,1935.3,1.29178938]
[1772457122069,3.87892558,1936.0,1935.3,3.85020561]
[1772457123244,2.58760315,1936.0,1935.3,3.85020561]
[1772457123571,3.87892709,1936.0,1935.3,3.85020561]
[1772457123772,0.00153886,1936.0,1935.4,2.55841623]
[1772457124372,2.58606429,1935.9,1935.1,3.85027624]
[1772457124684,2.58606429,1935.8,1934.9,1.29200154]
[1772457125761,1.29152244,1935.7,1934.9,1.29200154]
[1772457126476,1.29152244,1935.7,1935.2,0.0011]
[1772457127052,1.29149938,1935.8,1935.2,0.0011]
[1772457128586,3.87756367,1935.8,1935.2,0.0011]
[1772457129078,2.58606429,1935.7,1935.2,0.0011]
[1772457129577,5.11006429,1935.7,1935.2,0.0011]
[1772457130349,8.98006429,1935.7,1935.2,0.0011]
[1772457131261,6.45606429,1935.7,1935.2,0.0011]
[1772457131457,10.27063398,1935.7,1935.2,0.0011]
[1772457131848,7.68456969,1935.7,1935.2,0.0011]
[1772457132056,2.58606429,1935.6,1935.0,0.0011]
[1772457132283,2.58606429,1935.3,1934.4,1.983]
[1772457132469,4.33233121,1935.1,1934.2,3.85198955]
[1772457132783,2.526,1935.0,1934.2,3.85198955]
[1772457134084,3.63388294,1934.9,1934.2,0.0011]
[1772457134281,2.34182651,1934.8,1934.2,0.0011]
[1772457134984,4.86682651,1934.7,1934.2,0.0011]
[1772457136082,1.29225679,1934.6,1934.2,0.0011]
[1772457136584,7.51061977,1934.7,1934.2,0.0011]
[1772457136585,3.63404459,1934.7,1934.2,0.0011]
[1772457136796,5.16210008,1934.9,1934.2,0.0011]
[1772457137016,3.87,1934.9,1934.2,2.31713462]
[1772457137310,2.525,1935.1,1934.2,2.31713462]
[1772457137467,2.34182651,1935.3,1934.2,2.31713462]
[1772457137654,3.81977363,1935.4,1934.2,2.31713462]
[1772457137855,2.28971356,1935.6,1934.2,2.31713462]
[1772457138091,3.58134913,1935.6,1934.4,2.51258537]
[1772457139664,2.28971356,1935.6,1934.4,2.51258537]
[1772457139901,2.28971356,1935.7,1934.4,2.51258537]
[1772457140111,3.58130273,1935.6,1934.5,3.80490896]
[1772457140307,3.58130273,1935.6,1934.6,2.51258537]
[1772457141294,2.28971356,1935.5,1934.6,2.51258537]
[1772457141496,2.28971356,1935.5,1934.4,1.29234981]
[1772457141690,2.28971356,1935.5,1934.5,2.51258537]
[1772457142094,2.28971356,1935.5,1934.6,1.29225679]
[1772457142095,1.29172264,1935.4,1934.6,1.29225679]
[1772457142306,1.29172264,1935.4,1934.7,2.51258537]
[1772457142307,2.524,1935.4,1934.7,2.51258537]
[1772457142873,6.10434387,1935.6,1934.7,2.51258537]
[1772457143368,2.28971356,1935.5,1934.4,1.2923349]
[1772457143589,2.28971356,1935.2,1934.3,1.29355639]
[1772457143901,2.28971356,1935.1,1934.3,3.80614176]
[1772457144094,4.81271356,1935.1,1934.3,3.80614176]
[1772457144507,1.29198966,1935.0,1934.3,3.80614176]
[1772457144670,4.03598048,1935.5,1934.4,2.51258537]
[1772457144999,5.87542087,1935.5,1934.4,2.51258537]
[1772457146283,5.87542087,1935.5,1934.5,2.51258537]
[1772457146717,3.58142087,1935.5,1934.6,1.29225679]
[1772457146918,2.28971356,1935.5,1934.7,2.51258537]
[1772457147216,3.81265359,1935.6,1934.7,2.51258537]
[1772457147588,6.10236715,1935.6,1934.7,2.51258537]
[1772457147987,2.28971356,1935.6,1934.7,2.51258537]
[1772457148188,1.29149592,1935.8,1934.7,2.51258537]
[1772457148388,2.29071356,1935.9,1934.7,2.51258537]
[1772457148594,0.001,1935.9,1934.7,2.51258537]
[1772457148812,0.001,1935.9,1934.9,2.51258537]
[1772457149019,0.001,1935.9,1935.1,2.51258537]
[1772457149198,1.29108979,1936.4,1935.1,2.51258537]
[1772457149402,5.16345034,1936.7,1935.0,1.977]
[1772457149403,1.29092223,1936.6,1935.3,2.51258537]
[1772457149695,3.58063579,1936.6,1935.3,2.51258537]
[1772457150914,0.001,1935.5,1935.4,3.80430801]
[1772457151212,3.58063579,1936.6,1935.5,2.51258537]
[1772457151416,4.94063579,1936.6,1935.5,2.51258537]
[1772457151618,2.28971356,1936.5,1935.5,2.51258537]
[1772457153106,1.29105556,1936.4,1935.6,3.80417454]
[1772457153589,3.58076912,1936.4,1935.6,3.80417454]
[1772457154608,3.58076912,1936.4,1935.5,5.16635668]
[1772457154609,2.28971356,1936.3,1935.5,1.29160436]
[1772457155221,3.58090248,1936.2,1935.4,3.80430801]
[1772457155425,2.28971356,1936.1,1935.4,1.29172264]
[1772457157193,3.58103587,1936.0,1935.2,1.29185613]
[1772457157692,3.58103587,1936.0,1935.2,3.8044415]
[1772457159106,2.28971356,1936.0,1935.3,2.51258537]
[1772457159314,5.16487558,1936.2,1935.4,3.80430801]
[1772457159315,6.0949539,1936.2,1935.4,3.80430801]
[1772457159607,3.5809539,1936.2,1935.4,3.80430801]
[1772457161428,3.87,1936.3,1935.5,2.51258537]
[1772457161729,1.29096686,1936.6,1935.6,2.51258537]
[1772457162519,2.28971356,1936.5,1935.5,1.97]
[1772457162824,3.03723378,1936.6,1935.4,1.29172264]
[1772457162825,2.28971356,1936.2,1935.4,1.29172264]
[1772457163024,2.28971356,1936.2,1935.6,0.0011]
[1772457163404,1.29125561,1936.1,1935.6,0.0011]
[1772457167239,3.58095113,1936.2,1935.6,0.0011]
[1772457167612,2.41657618,1936.1,1935.6,0.0011]
[1772457168316,3.70788535,1936.1,1935.6,0.0011]
[1772457168517,1.29130917,1936.1,1935.6,0.0011]
[1772457169032,3.80223657,1936.2,1935.6,0.0011]
[1772457169425,7.67223657,1936.2,1935.6,0.0011]
[1772457169723,3.87,1936.2,1935.6,0.0011]
[1772457170032,0.001,1936.3,1935.6,2.26087939]
[1772457170227,0.001,1936.3,1935.7,1.29152244]
[1772457170805,0.001,1936.3,1935.7,3.55130183]
[1772457172419,0.001,1936.3,1935.8,2.25977939]
[1772457174419,0.001,1936.3,1935.9,1.29138901]
[1772457175334,0.001,1936.2,1935.8,1.29142398]
[1772457175541,0.001,1936.2,1935.8,3.55120337]
[1772457176849,0.001,1936.2,1935.9,2.25977939]
[1772457177246,0.001,1936.2,1935.8,1.29142398]
[1772457178532,0.001,1936.2,1935.7,3.25546099]
[1772457179339,0.001,1936.2,1935.7,1.29146099]
[1772457180170,2.41757618,1936.2,1935.6,0.0011]
[1772457180349,2.41657618,1936.1,1935.6,0.0011]
[1772457180557,0.001,1936.2,1935.7,2.25977939]
[1772457180719,0.001,1936.2,1935.9,2.25977939]
[1772457180916,3.70743546,1936.7,1935.9,2.25977939]
[1772457181130,2.41657618,1936.6,1935.9,2.25977939]
[1772457181331,2.41657618,1936.6,1935.7,1.29146921]
[1772457181933,2.41657618,1936.5,1935.7,1.29146921]
[1772457183024,1.29105556,1936.4,1935.6,5.16728704]
[1772457183348,2.41657618,1936.2,1935.6,0.0011]
[1772457183851,5.16099082,1936.5,1935.6,2.26087939]
[1772457184069,7.57974016,1936.8,1935.6,2.26087939]
[1772457184070,3.70748472,1936.7,1935.7,1.967]
[1772457184363,3.70748472,1936.7,1935.8,2.25977939]
[1772457185265,2.41757618,1936.9,1936.0,2.25977939]
[1772457185472,2.41657618,1936.8,1936.0,2.25977939]
[1772457186951,2.41657618,1936.8,1935.8,1.29144147]
[1772457187760,1.29085557,1936.7,1935.8,1.29144147]
[1772457187964,2.41657618,1936.6,1935.8,1.29144147]
[1772457188169,0.001,1936.4,1935.8,1.29144147]
[1772457188661,0.001,1936.4,1935.8,3.55122086]
[1772457189560,0.001,1936.4,1935.9,2.25977939]
[1772457190340,0.001,1936.4,1936.0,1.29132231]
[1772457191571,0.001,1936.4,1936.0,3.5511017]
[1772457195644,0.001,1936.4,1935.8,2.26284965]
[1772457195979,2.21309066,1936.2,1935.7,0.0011]
[1772457196187,2.21309066,1936.2,1935.7,1.2926157]
[1772457196345,2.491,1936.4,1935.8,2.26284965]
[1772457196346,0.001,1936.4,1935.8,2.26284965]
[1772457197273,0.001,1936.4,1935.9,1.29138901]
[1772457197572,0.001,1936.4,1935.9,3.57661224]
[1772457197778,2.24278976,1936.4,1935.7,3.57780159]
[1772457199295,2.24278976,1936.4,1935.8,2.28522323]
[1772457199783,3.5338488,1936.4,1935.8,2.28522323]
[1772457199950,3.53385951,1936.4,1935.8,2.28522323]
[1772457200147,2.24278976,1936.4,1935.8,2.28522323]
[1772457200378,0.001,1936.4,1935.8,2.28522323]
[1772457200878,1.29205914,1936.4,1935.8,2.28522323]
[1772457201679,0.001,1936.4,1935.8,3.57665747]
[1772457202178,0.001,1936.4,1935.7,0.0011]
[1772457202179,2.24178976,1936.2,1935.7,0.0011]
[1772457203773,2.24178976,1936.0,1935.7,0.0011]
[1772457208286,1.29138901,1935.9,1935.7,0.0011]
[1772457210608,3.53316694,1936.0,1935.7,0.0011]
[1772457210789,6.02409225,1936.1,1935.7,0.0011]
[1772457211462,6.02409225,1936.1,1935.8,0.0011]
[1772457211864,2.24178976,1936.0,1935.5,0.0011]